[Event "Titled Tuesday Blitz May 16 Early 2023"]
[White "Hafiz, Arif Abdul"]
[Black "Spata, German"]
[WhiteFideId "7104227"]
[BlackFideId "113026"]
[WhiteElo "2198"]
[BlackElo "2260"]
[Result "1/2-1/2"]
[Round "03"]
[TimeControl "180+2"]
[Date "2023.05.16"]
[WhiteClock "0:00:11"]
[BlackClock "0:00:10"]

1. e4 {[%clk 0:03:00]}  e6 {[%clk 0:02:55]} 2. d4 {[%clk 0:03:00]}  d5 {[%clk 0:02:55]} 3. Nc3 {[%clk 0:03:00]}  dxe4 {[%clk 0:02:56]} 4. Nxe4 {[%clk 0:03:00]}  Bd7 {[%clk 0:02:57]} 5. Nf3 {[%clk 0:03:00]}  Bc6 {[%clk 0:02:57]} 6. Ng3 {[%clk 0:03:00]}  Nd7 {[%clk 0:02:57]} 7. Bd3 {[%clk 0:03:01]}  Ngf6 {[%clk 0:02:57]} 8. O-O {[%clk 0:03:01]}  Be7 {[%clk 0:02:57]} 9. Qe2 {[%clk 0:03:02]}  Bxf3 {[%clk 0:02:56]} 10. Qxf3 {[%clk 0:03:03]}  c6 {[%clk 0:02:57]} 11. c3 {[%clk 0:02:56]}  O-O {[%clk 0:02:57]} 12. Bf4 {[%clk 0:02:54]}  Re8 {[%clk 0:02:56]} 13. Rfe1 {[%clk 0:02:54]}  Qa5 {[%clk 0:02:56]} 14. Ne4 {[%clk 0:02:48]}  Nxe4 {[%clk 0:02:56]} 15. Rxe4 {[%clk 0:02:45]}  g6 {[%clk 0:02:49]} 16. g3 {[%clk 0:02:41]}  Bg5 {[%clk 0:02:40]} 17. b4 {[%clk 0:02:25]}  Qd8 {[%clk 0:02:39]} 18. Bxg5 {[%clk 0:02:17]}  Qxg5 {[%clk 0:02:38]} 19. h4 {[%clk 0:02:18]}  Qe7 {[%clk 0:02:32]} 20. Rae1 {[%clk 0:02:03]}  Nf6 {[%clk 0:02:30]} 21. R4e2 {[%clk 0:02:02]}  Nd5 {[%clk 0:02:26]} 22. Bb1 {[%clk 0:01:52]}  Qf6 {[%clk 0:02:26]} 23. Qd3 {[%clk 0:01:42]}  a5 {[%clk 0:02:26]} 24. bxa5 {[%clk 0:01:26]}  Rxa5 {[%clk 0:02:26]} 25. c4 {[%clk 0:01:25]}  Ne7 {[%clk 0:02:17]} 26. Re5 {[%clk 0:01:23]}  Rea8 {[%clk 0:02:06]} 27. Qb3 {[%clk 0:01:21]}  b5 {[%clk 0:01:57]} 28. cxb5 {[%clk 0:01:16]}  Rxb5 {[%clk 0:01:55]} 29. Qc3 {[%clk 0:01:00]}  Rd8 {[%clk 0:01:38]} 30. a4 {[%clk 0:00:57]}  Rbd5 {[%clk 0:01:37]} 31. Rxd5 {[%clk 0:00:36]}  Nxd5 {[%clk 0:01:31]} 32. Qxc6 {[%clk 0:00:32]}  Qxd4 {[%clk 0:01:31]} 33. Qc2 {[%clk 0:00:26]}  Nc3 {[%clk 0:01:17]} 34. a5 {[%clk 0:00:25]}  Ra8 {[%clk 0:01:07]} 35. Rc1 {[%clk 0:00:22]}  Nxb1 {[%clk 0:01:04]} 36. Qxb1 {[%clk 0:00:21]}  Rxa5 {[%clk 0:00:58]} 37. Qb8+ {[%clk 0:00:17]}  Kg7 {[%clk 0:00:57]} 38. Qc7 {[%clk 0:00:17]}  Ra2 {[%clk 0:00:36]} 39. Qc3 {[%clk 0:00:16]}  Qxc3 {[%clk 0:00:36]} 40. Rxc3 {[%clk 0:00:16]}  h6 {[%clk 0:00:37]} 41. Kg2 {[%clk 0:00:17]}  Ra5 {[%clk 0:00:37]} 42. Rc7 {[%clk 0:00:17]}  Kf6 {[%clk 0:00:37]} 43. Rb7 {[%clk 0:00:17]}  Rd5 {[%clk 0:00:37]} 44. Rc7 {[%clk 0:00:18]}  Re5 {[%clk 0:00:37]} 45. Rb7 {[%clk 0:00:18]}  Rd5 {[%clk 0:00:38]} 46. Rc7 {[%clk 0:00:19]}  g5 {[%clk 0:00:38]} 47. hxg5+ {[%clk 0:00:18]}  hxg5 {[%clk 0:00:37]} 48. Rb7 {[%clk 0:00:19]}  g4 {[%clk 0:00:35]} 49. Rc7 {[%clk 0:00:18]}  Kg6 {[%clk 0:00:35]} 50. Re7 {[%clk 0:00:18]}  Re5 {[%clk 0:00:34]} 51. Rd7 {[%clk 0:00:18]}  f5 {[%clk 0:00:34]} 52. Rc7 {[%clk 0:00:18]}  Kf6 {[%clk 0:00:34]} 53. Rc8 {[%clk 0:00:18]}  Rd5 {[%clk 0:00:35]} 54. Rf8+ {[%clk 0:00:18]}  Ke5 {[%clk 0:00:35]} 55. Re8 {[%clk 0:00:19]}  Rd6 {[%clk 0:00:36]} 56. Re7 {[%clk 0:00:18]}  Ke4 {[%clk 0:00:36]} 57. Ra7 {[%clk 0:00:18]}  e5 {[%clk 0:00:34]} 58. Ra4+ {[%clk 0:00:18]}  Rd4 {[%clk 0:00:35]} 59. Ra8 {[%clk 0:00:19]}  Rc4 {[%clk 0:00:32]} 60. Re8 {[%clk 0:00:18]}  Rb4 {[%clk 0:00:32]} 61. Rd8 {[%clk 0:00:18]}  Rb6 {[%clk 0:00:31]} 62. Rd7 {[%clk 0:00:18]}  Re6 {[%clk 0:00:28]} 63. Rd1 {[%clk 0:00:15]}  f4 {[%clk 0:00:27]} 64. gxf4 {[%clk 0:00:16]}  exf4 {[%clk 0:00:28]} 65. Rd8 {[%clk 0:00:15]}  Kf5 {[%clk 0:00:23]} 66. Rf8+ {[%clk 0:00:15]}  Rf6 {[%clk 0:00:23]} 67. Ra8 {[%clk 0:00:14]}  Kg5 {[%clk 0:00:23]} 68. Rg8+ {[%clk 0:00:13]}  Rg6 {[%clk 0:00:23]} 69. Rh8 {[%clk 0:00:13]}  Rh6 {[%clk 0:00:21]} 70. Rg8+ {[%clk 0:00:13]}  Kh4 {[%clk 0:00:19]} 71. f3 {[%clk 0:00:13]}  gxf3+ {[%clk 0:00:13]} 72. Kxf3 {[%clk 0:00:14]}  Kh5 {[%clk 0:00:11]} 73. Kxf4 {[%clk 0:00:11]}  Rf6+ {[%clk 0:00:11]} 74. Ke5 {[%clk 0:00:11]}  Rf1 {[%clk 0:00:11]} 75. Rg2 {[%clk 0:00:10]}  Kh6 {[%clk 0:00:10]} 76. Ke6 {[%clk 0:00:10]}  Kh5 {[%clk 0:00:10]} 77. Ke5 {[%clk 0:00:10]}  Kh6 {[%clk 0:00:10]} 78. Ke6 {[%clk 0:00:10]}  Kh5 {[%clk 0:00:10]} 79. Ke5 {[%clk 0:00:11]} 1/2-1/2


[Site "https://www.chess.com"]

[Event "Titled Tuesday Blitz May 16 Early 2023"]
[White "Domingo Nunez, Alejandro"]
[Black "Sychev, Klementy"]
[WhiteFideId "22245561"]
[BlackFideId "4114060"]
[WhiteElo "2291"]
[BlackElo "2583"]
[Result "0-1"]
[Round "03"]
[TimeControl "180+2"]
[Date "2023.05.16"]
[WhiteClock "0:00:03"]
[BlackClock "0:00:03"]

1. Nf3 {[%clk 0:03:00]}  Nf6 {[%clk 0:02:56]} 2. g3 {[%clk 0:03:01]}  d5 {[%clk 0:02:54]} 3. Bg2 {[%clk 0:03:00]}  c5 {[%clk 0:02:54]} 4. O-O {[%clk 0:03:01]}  e6 {[%clk 0:02:55]} 5. d4 {[%clk 0:03:01]}  cxd4 {[%clk 0:02:54]} 6. Nxd4 {[%clk 0:03:01]}  e5 {[%clk 0:02:54]} 7. Nb3 {[%clk 0:02:59]}  Be6 {[%clk 0:02:54]} 8. c4 {[%clk 0:02:57]}  Nc6 {[%clk 0:02:53]} 9. cxd5 {[%clk 0:02:57]}  Nxd5 {[%clk 0:02:53]} 10. Bd2 {[%clk 0:02:54]}  a5 {[%clk 0:02:30]} 11. Nc3 {[%clk 0:02:54]}  a4 {[%clk 0:02:26]} 12. Nc1 {[%clk 0:02:51]}  a3 {[%clk 0:02:07]} 13. b3 {[%clk 0:02:51]}  Be7 {[%clk 0:02:02]} 14. Nd3 {[%clk 0:02:50]}  O-O {[%clk 0:02:00]} 15. Rc1 {[%clk 0:02:44]}  Re8 {[%clk 0:01:47]} 16. Na4 {[%clk 0:01:40]}  Bg4 {[%clk 0:01:13]} 17. h3 {[%clk 0:01:14]}  Bh5 {[%clk 0:01:12]} 18. g4 {[%clk 0:01:10]}  Bg6 {[%clk 0:01:10]} 19. Bxd5 {[%clk 0:01:11]}  Qxd5 {[%clk 0:01:07]} 20. Nb6 {[%clk 0:01:11]}  Qe6 {[%clk 0:01:02]} 21. Nxa8 {[%clk 0:01:12]}  Rxa8 {[%clk 0:01:02]} 22. Nc5 {[%clk 0:00:51]}  Bxc5 {[%clk 0:00:57]} 23. Rxc5 {[%clk 0:00:52]}  h5 {[%clk 0:00:57]} 24. f3 {[%clk 0:00:51]}  hxg4 {[%clk 0:00:52]} 25. hxg4 {[%clk 0:00:52]}  Rd8 {[%clk 0:00:52]} 26. Qe1 {[%clk 0:00:32]}  e4 {[%clk 0:00:45]} 27. Bc3 {[%clk 0:00:14]}  Rd6 {[%clk 0:00:34]} 28. Qg3 {[%clk 0:00:12]}  exf3 {[%clk 0:00:29]} 29. exf3 {[%clk 0:00:12]}  Rd3 {[%clk 0:00:28]} 30. Qf2 {[%clk 0:00:10]}  b6 {[%clk 0:00:25]} 31. Re1 {[%clk 0:00:09]}  Qd7 {[%clk 0:00:23]} 32. Rc4 {[%clk 0:00:06]}  f6 {[%clk 0:00:22]} 33. Ra4 {[%clk 0:00:04]}  Rxc3 {[%clk 0:00:20]} 34. Ra8+ {[%clk 0:00:04]}  Kf7 {[%clk 0:00:18]} 35. Rae8 {[%clk 0:00:02]}  Rc2 {[%clk 0:00:09]} 36. Qxb6 {[%clk 0:00:02]}  Qxe8 {[%clk 0:00:06]} 37. Rxe8 {[%clk 0:00:01]}  Kxe8 {[%clk 0:00:06]} 38. Qb7 {[%clk 0:00:01]}  Nd8 {[%clk 0:00:04]} 39. Qb5+ {[%clk 0:00:01]}  Kf8 {[%clk 0:00:03]} 40. Qb4+ {[%clk 0:00:02]}  Kf7 {[%clk 0:00:03]} 41. Qxa3 {[%clk 0:00:01]}  Ne6 {[%clk 0:00:03]} 42. Qa7+ {[%clk 0:00:01]}  Kg8 {[%clk 0:00:03]} 43. Qe3 {[%clk 0:00:02]}  Ng5 {[%clk 0:00:04]} 44. a4 {[%clk 0:00:01]}  Nh3+ {[%clk 0:00:04]} 45. Kf1 {[%clk 0:00:02]}  Rc8 {[%clk 0:00:03]} 46. a5 {[%clk 0:00:02]}  Re8 {[%clk 0:00:03]} 47. Qb6 {[%clk 0:00:02]}  Nf4 {[%clk 0:00:03]} 48. Kf2 {[%clk 0:00:02]}  Bd3 {[%clk 0:00:03]} 49. Kg3 {[%clk 0:00:03]}  Ne2+ {[%clk 0:00:01]} 50. Kh4 {[%clk 0:00:03]}  g5+ {[%clk 0:00:01]} 51. Kh5 {[%clk 0:00:04]}  Nf4+ {[%clk 0:00:01]} 52. Kh6 {[%clk 0:00:04]}  Re7 {[%clk 0:00:02]} 53. Qb8+ {[%clk 0:00:04]}  Kf7 {[%clk 0:00:02]} 54. Qh8 {[%clk 0:00:04]}  Ke6 {[%clk 0:00:02]} 55. Qg8+ {[%clk 0:00:04]}  Kd6 {[%clk 0:00:03]} 56. Qd8+ {[%clk 0:00:05]}  Ke6 {[%clk 0:00:03]} 57. Qg8+ {[%clk 0:00:04]}  Kd7 {[%clk 0:00:03]} 58. Qb8 {[%clk 0:00:03]}  Rh7# {[%clk 0:00:03]} 0-1


[Site "https://www.chess.com"]

[Event "Titled Tuesday Blitz May 16 Early 2023"]
[White "Mamedov, Edgar"]
[Black "Lazavik, Denis"]
[WhiteFideId "13739980"]
[BlackFideId "13515110"]
[WhiteElo "2317"]
[BlackElo "2560"]
[Result "0-1"]
[Round "03"]
[TimeControl "180+2"]
[Date "2023.05.16"]
[WhiteClock "0:00:04"]
[BlackClock "0:00:23"]

1. d4 {[%clk 0:03:00]}  Nf6 {[%clk 0:03:00]} 2. Bg5 {[%clk 0:03:00]}  d5 {[%clk 0:02:59]} 3. e3 {[%clk 0:03:00]}  c5 {[%clk 0:03:00]} 4. Bxf6 {[%clk 0:03:00]}  gxf6 {[%clk 0:03:00]} 5. dxc5 {[%clk 0:03:00]}  e6 {[%clk 0:03:00]} 6. c4 {[%clk 0:02:59]}  dxc4 {[%clk 0:02:57]} 7. Nd2 {[%clk 0:02:55]}  c3 {[%clk 0:02:54]} 8. bxc3 {[%clk 0:02:55]}  Bxc5 {[%clk 0:02:54]} 9. Ngf3 {[%clk 0:02:55]}  Nc6 {[%clk 0:02:53]} 10. Be2 {[%clk 0:02:54]}  Be7 {[%clk 0:02:52]} 11. O-O {[%clk 0:02:53]}  Qc7 {[%clk 0:02:52]} 12. Nd4 {[%clk 0:02:53]}  Bd7 {[%clk 0:02:49]} 13. Nc4 {[%clk 0:02:50]}  a6 {[%clk 0:02:39]} 14. Qb3 {[%clk 0:02:25]}  b5 {[%clk 0:02:38]} 15. Nd2 {[%clk 0:02:25]}  Na5 {[%clk 0:02:37]} 16. Qb2 {[%clk 0:02:25]}  O-O {[%clk 0:02:37]} 17. Rac1 {[%clk 0:02:24]}  Rab8 {[%clk 0:02:27]} 18. Qc2 {[%clk 0:02:20]}  Rfc8 {[%clk 0:02:25]} 19. Qe4 {[%clk 0:02:17]}  Qe5 {[%clk 0:02:00]} 20. Qh4 {[%clk 0:02:12]}  Qg5 {[%clk 0:01:57]} 21. Qxg5+ {[%clk 0:02:09]}  fxg5 {[%clk 0:01:56]} 22. c4 {[%clk 0:02:05]}  Ba3 {[%clk 0:01:51]} 23. Rc2 {[%clk 0:02:05]}  bxc4 {[%clk 0:01:50]} 24. Nxc4 {[%clk 0:02:04]}  Nxc4 {[%clk 0:01:47]} 25. Rxc4 {[%clk 0:02:04]}  Rxc4 {[%clk 0:01:45]} 26. Bxc4 {[%clk 0:02:04]}  a5 {[%clk 0:01:46]} 27. f3 {[%clk 0:01:08]}  a4 {[%clk 0:01:40]} 28. Re1 {[%clk 0:01:06]}  Bc5 {[%clk 0:01:39]} 29. Kf2 {[%clk 0:00:56]}  Kf8 {[%clk 0:01:37]} 30. Re2 {[%clk 0:00:55]}  Ke7 {[%clk 0:01:36]} 31. Rc2 {[%clk 0:00:53]}  Bd6 {[%clk 0:01:29]} 32. Bd3 {[%clk 0:00:46]}  h5 {[%clk 0:01:15]} 33. Nc6+ {[%clk 0:00:45]}  Bxc6 {[%clk 0:01:15]} 34. Rxc6 {[%clk 0:00:46]}  Bxh2 {[%clk 0:01:13]} 35. Rc2 {[%clk 0:00:42]}  Bd6 {[%clk 0:01:10]} 36. g3 {[%clk 0:00:38]}  h4 {[%clk 0:00:57]} 37. gxh4 {[%clk 0:00:38]}  gxh4 {[%clk 0:00:57]} 38. f4 {[%clk 0:00:36]}  Rg8 {[%clk 0:00:52]} 39. Bf1 {[%clk 0:00:30]}  Rg3 {[%clk 0:00:49]} 40. Bg2 {[%clk 0:00:25]}  a3 {[%clk 0:00:47]} 41. Rc1 {[%clk 0:00:24]}  Rg8 {[%clk 0:00:45]} 42. Rh1 {[%clk 0:00:22]}  Rb8 {[%clk 0:00:44]} 43. Re1 {[%clk 0:00:19]}  Rb2+ {[%clk 0:00:45]} 44. Re2 {[%clk 0:00:19]}  f5 {[%clk 0:00:43]} 45. Kf3 {[%clk 0:00:19]}  Bc5 {[%clk 0:00:38]} 46. Bf1 {[%clk 0:00:19]}  Rb1 {[%clk 0:00:35]} 47. Kf2 {[%clk 0:00:17]}  e5 {[%clk 0:00:30]} 48. fxe5 {[%clk 0:00:16]}  f4 {[%clk 0:00:30]} 49. Kf3 {[%clk 0:00:16]}  Rxf1+ {[%clk 0:00:29]} 50. Ke4 {[%clk 0:00:16]}  fxe3 {[%clk 0:00:26]} 51. Kd5 {[%clk 0:00:16]}  Rf2 {[%clk 0:00:24]} 52. Re1 {[%clk 0:00:14]}  Ba7 {[%clk 0:00:24]} 53. Rb1 {[%clk 0:00:14]}  Rd2+ {[%clk 0:00:24]} 54. Ke4 {[%clk 0:00:13]}  Rb2 {[%clk 0:00:25]} 55. Rh1 {[%clk 0:00:10]}  e2 {[%clk 0:00:25]} 56. Kf3 {[%clk 0:00:10]}  h3 {[%clk 0:00:25]} 57. Kg3 {[%clk 0:00:08]}  h2 {[%clk 0:00:24]} 58. Kf3 {[%clk 0:00:04]}  Bg1 {[%clk 0:00:23]} 0-1


[Site "https://www.chess.com"]

[Event "Titled Tuesday Blitz May 16 Early 2023"]
[White "Babazada, Khazar"]
[Black "Soham Kamotra"]
[WhiteFideId "13413554"]
[BlackFideId "46647490"]
[WhiteElo "2351"]
[BlackElo "2209"]
[Result "1/2-1/2"]
[Round "03"]
[TimeControl "180+2"]
[Date "2023.05.16"]
[WhiteClock "0:00:04"]
[BlackClock "0:00:04"]

1. Nf3 {[%clk 0:02:43]}  d6 {[%clk 0:02:59]} 2. g3 {[%clk 0:02:43]}  e5 {[%clk 0:02:57]} 3. d4 {[%clk 0:02:41]}  e4 {[%clk 0:02:51]} 4. Ng5 {[%clk 0:02:41]}  d5 {[%clk 0:02:50]} 5. c4 {[%clk 0:02:41]}  c6 {[%clk 0:02:44]} 6. Nc3 {[%clk 0:02:39]}  Nf6 {[%clk 0:02:39]} 7. Bg2 {[%clk 0:02:23]}  Be7 {[%clk 0:02:39]} 8. h4 {[%clk 0:02:18]}  O-O {[%clk 0:02:23]} 9. Bf4 {[%clk 0:02:17]}  a6 {[%clk 0:02:10]} 10. Qb3 {[%clk 0:02:05]}  b5 {[%clk 0:02:06]} 11. cxd5 {[%clk 0:02:04]}  cxd5 {[%clk 0:02:07]} 12. Bxb8 {[%clk 0:02:00]}  Rxb8 {[%clk 0:02:06]} 13. e3 {[%clk 0:01:59]}  a5 {[%clk 0:01:53]} 14. Rc1 {[%clk 0:01:52]}  Ba6 {[%clk 0:01:45]} 15. Nh3 {[%clk 0:01:38]}  Rc8 {[%clk 0:01:29]} 16. Qd1 {[%clk 0:01:34]}  b4 {[%clk 0:01:18]} 17. Ne2 {[%clk 0:01:34]}  Qb6 {[%clk 0:01:10]} 18. Nhf4 {[%clk 0:01:30]}  a4 {[%clk 0:01:07]} 19. Qxa4 {[%clk 0:01:23]}  Bb5 {[%clk 0:01:02]} 20. Qd1 {[%clk 0:01:19]}  Ra8 {[%clk 0:01:00]} 21. O-O {[%clk 0:01:17]}  Rxa2 {[%clk 0:00:59]} 22. Qb3 {[%clk 0:01:12]}  Ra5 {[%clk 0:00:58]} 23. Rfe1 {[%clk 0:01:06]}  Bd6 {[%clk 0:00:47]} 24. Qd1 {[%clk 0:00:57]}  Ra2 {[%clk 0:00:42]} 25. Qb3 {[%clk 0:00:55]}  Ra5 {[%clk 0:00:42]} 26. g4 {[%clk 0:00:50]}  Bc4 {[%clk 0:00:40]} 27. Qc2 {[%clk 0:00:41]}  b3 {[%clk 0:00:39]} 28. Qd1 {[%clk 0:00:40]}  Nxg4 {[%clk 0:00:33]} 29. Nc3 {[%clk 0:00:33]}  Nf6 {[%clk 0:00:30]} 30. Nh5 {[%clk 0:00:29]}  Nxh5 {[%clk 0:00:22]} 31. Qxh5 {[%clk 0:00:30]}  f5 {[%clk 0:00:23]} 32. f4 {[%clk 0:00:31]}  Bb4 {[%clk 0:00:20]} 33. Kh2 {[%clk 0:00:24]}  Qg6 {[%clk 0:00:18]} 34. Qxg6 {[%clk 0:00:15]}  hxg6 {[%clk 0:00:18]} 35. Bf1 {[%clk 0:00:16]}  Rc8 {[%clk 0:00:15]} 36. Nxd5 {[%clk 0:00:10]}  Bxe1 {[%clk 0:00:06]} 37. Bxc4 {[%clk 0:00:11]}  Rxc4 {[%clk 0:00:05]} 38. Rxc4 {[%clk 0:00:11]}  Ra2 {[%clk 0:00:06]} 39. Rc8+ {[%clk 0:00:09]}  Kh7 {[%clk 0:00:05]} 40. Rc7 {[%clk 0:00:07]}  Rxb2+ {[%clk 0:00:05]} 41. Kh3 {[%clk 0:00:08]}  Rc2 {[%clk 0:00:04]} 42. Rb7 {[%clk 0:00:07]}  b2 {[%clk 0:00:04]} 43. Nf6+ {[%clk 0:00:07]}  Kh6 {[%clk 0:00:04]} 44. Ng8+ {[%clk 0:00:07]}  Kh7 {[%clk 0:00:04]} 45. Nf6+ {[%clk 0:00:07]}  Kh6 {[%clk 0:00:04]} 46. Nd5 {[%clk 0:00:05]}  Rd2 {[%clk 0:00:02]} 47. Rb6 {[%clk 0:00:04]}  Kh7 {[%clk 0:00:02]} 48. Rb7 {[%clk 0:00:03]}  Re2 {[%clk 0:00:02]} 49. Nf6+ {[%clk 0:00:02]}  Kh6 {[%clk 0:00:02]} 50. Ng8+ {[%clk 0:00:03]}  Kh7 {[%clk 0:00:03]} 51. Nf6+ {[%clk 0:00:04]}  Kh6 {[%clk 0:00:03]} 52. Ng8+ {[%clk 0:00:03]}  Kh7 {[%clk 0:00:04]} 53. Nf6+ {[%clk 0:00:04]} 1/2-1/2


[Site "https://www.chess.com"]

[Event "Titled Tuesday Blitz May 16 Early 2023"]
[White "Averjanov, Alexey"]
[Black "Janaszak, Dawid"]
[WhiteFideId "14109867"]
[BlackFideId "1119206"]
[WhiteElo "2798"]
[BlackElo "2220"]
[Result "1-0"]
[Round "03"]
[TimeControl "180+2"]
[Date "2023.05.16"]
[WhiteClock "0:00:19"]
[BlackClock "0:00:08"]

1. d4 {[%clk 0:02:57]}  d5 {[%clk 0:03:00]} 2. c4 {[%clk 0:02:55]}  e6 {[%clk 0:03:00]} 3. Nf3 {[%clk 0:02:55]}  c5 {[%clk 0:03:00]} 4. dxc5 {[%clk 0:02:54]}  Bxc5 {[%clk 0:03:01]} 5. e3 {[%clk 0:02:55]}  Nc6 {[%clk 0:02:59]} 6. a3 {[%clk 0:02:55]}  Nf6 {[%clk 0:02:58]} 7. b4 {[%clk 0:02:55]}  Bd6 {[%clk 0:02:53]} 8. Bb2 {[%clk 0:02:55]}  O-O {[%clk 0:02:53]} 9. Nbd2 {[%clk 0:02:55]}  a5 {[%clk 0:02:43]} 10. b5 {[%clk 0:02:55]}  Ne7 {[%clk 0:02:41]} 11. Be2 {[%clk 0:02:54]}  Ng6 {[%clk 0:02:39]} 12. O-O {[%clk 0:02:54]}  b6 {[%clk 0:02:33]} 13. Rc1 {[%clk 0:02:51]}  Bb7 {[%clk 0:02:33]} 14. cxd5 {[%clk 0:02:48]}  exd5 {[%clk 0:02:28]} 15. Nd4 {[%clk 0:02:47]}  Ne4 {[%clk 0:02:21]} 16. Nc6 {[%clk 0:02:44]}  Qh4 {[%clk 0:02:18]} 17. g3 {[%clk 0:02:11]}  Bxg3 {[%clk 0:01:30]} 18. fxg3 {[%clk 0:02:01]}  Nxg3 {[%clk 0:01:30]} 19. Nf3 {[%clk 0:01:56]}  Nxe2+ {[%clk 0:01:15]} 20. Qxe2 {[%clk 0:01:56]}  Qe4 {[%clk 0:01:06]} 21. Nd2 {[%clk 0:01:30]}  Qh4 {[%clk 0:00:56]} 22. Qf2 {[%clk 0:01:23]}  Qa4 {[%clk 0:00:53]} 23. Nd4 {[%clk 0:01:01]}  Ne5 {[%clk 0:00:41]} 24. Qg3 {[%clk 0:00:45]}  f6 {[%clk 0:00:29]} 25. Rc7 {[%clk 0:00:43]}  Rf7 {[%clk 0:00:18]} 26. Rxf7 {[%clk 0:00:42]}  Nxf7 {[%clk 0:00:19]} 27. Nf5 {[%clk 0:00:35]}  Ng5 {[%clk 0:00:13]} 28. h4 {[%clk 0:00:32]}  Ne6 {[%clk 0:00:13]} 29. Nxg7 {[%clk 0:00:21]}  Kf7 {[%clk 0:00:10]} 30. Rxf6+ {[%clk 0:00:19]}  Ke7 {[%clk 0:00:09]} 31. Rxe6+ {[%clk 0:00:19]}  Kd7 {[%clk 0:00:08]} 32. Qd6+ {[%clk 0:00:19]} 1-0


[Site "https://www.chess.com"]

[Event "Titled Tuesday Blitz May 16 Early 2023"]
[White "Bondau"]
[Black "Baghdasaryan, Vahe"]
[BlackFideId "13303139"]
[WhiteElo "2779"]
[BlackElo "2216"]
[Result "0-1"]
[Round "03"]
[TimeControl "180+2"]
[Date "2023.05.16"]
[WhiteClock "0:00:00"]
[BlackClock "0:00:19"]

1. e4 {[%clk 0:03:00]}  c5 {[%clk 0:02:57]} 2. Nf3 {[%clk 0:02:59]}  e6 {[%clk 0:02:53]} 3. g3 {[%clk 0:02:55]}  Nc6 {[%clk 0:02:47]} 4. Bg2 {[%clk 0:02:55]}  g6 {[%clk 0:02:47]} 5. O-O {[%clk 0:02:55]}  Bg7 {[%clk 0:02:47]} 6. c3 {[%clk 0:02:55]}  Nge7 {[%clk 0:02:46]} 7. d4 {[%clk 0:02:53]}  cxd4 {[%clk 0:02:43]} 8. cxd4 {[%clk 0:02:54]}  d5 {[%clk 0:02:42]} 9. e5 {[%clk 0:02:54]}  O-O {[%clk 0:02:42]} 10. Nc3 {[%clk 0:02:54]}  f6 {[%clk 0:02:36]} 11. exf6 {[%clk 0:02:53]}  Bxf6 {[%clk 0:02:33]} 12. Ne2 {[%clk 0:02:47]}  Nf5 {[%clk 0:02:25]} 13. Qd3 {[%clk 0:02:21]}  Qb6 {[%clk 0:02:20]} 14. Rd1 {[%clk 0:02:21]}  Bd7 {[%clk 0:02:18]} 15. a3 {[%clk 0:02:18]}  Rac8 {[%clk 0:01:51]} 16. h4 {[%clk 0:01:57]}  Na5 {[%clk 0:01:48]} 17. b4 {[%clk 0:01:49]}  Bb5 {[%clk 0:01:39]} 18. bxa5 {[%clk 0:01:22]}  Bxd3 {[%clk 0:01:35]} 19. axb6 {[%clk 0:01:23]}  Bxe2 {[%clk 0:01:35]} 20. Bf4 {[%clk 0:01:19]}  Bxd1 {[%clk 0:01:31]} 21. Rxd1 {[%clk 0:01:20]}  axb6 {[%clk 0:01:31]} 22. Be5 {[%clk 0:01:14]}  Bxe5 {[%clk 0:01:16]} 23. dxe5 {[%clk 0:01:15]}  Rc3 {[%clk 0:01:12]} 24. Ng5 {[%clk 0:01:14]}  Re8 {[%clk 0:01:06]} 25. Rb1 {[%clk 0:01:05]}  h6 {[%clk 0:00:55]} 26. Nh3 {[%clk 0:00:58]}  d4 {[%clk 0:00:51]} 27. Nf4 {[%clk 0:00:52]}  d3 {[%clk 0:00:46]} 28. Rd1 {[%clk 0:00:29]}  Rxa3 {[%clk 0:00:34]} 29. Bxb7 {[%clk 0:00:23]}  Kf7 {[%clk 0:00:33]} 30. Be4 {[%clk 0:00:21]}  Rd8 {[%clk 0:00:29]} 31. Nxd3 {[%clk 0:00:09]}  Rd4 {[%clk 0:00:28]} 32. Re1 {[%clk 0:00:03]}  Raxd3 {[%clk 0:00:19]} 33. Bxd3 {[%clk 0:00:04]}  Rxd3 {[%clk 0:00:20]} 34. Rb1 {[%clk 0:00:05]}  Nd4 {[%clk 0:00:21]} 35. Rxb6 {[%clk 0:00:04]}  Nf3+ {[%clk 0:00:21]} 36. Kg2 {[%clk 0:00:05]}  Nxe5 {[%clk 0:00:22]} 37. Rb7+ {[%clk 0:00:06]}  Kf6 {[%clk 0:00:22]} 38. Rb8 {[%clk 0:00:05]}  h5 {[%clk 0:00:22]} 39. Rf8+ {[%clk 0:00:06]}  Ke7 {[%clk 0:00:22]} 40. Rh8 {[%clk 0:00:05]}  Ng4 {[%clk 0:00:21]} 41. Rg8 {[%clk 0:00:04]}  Kf7 {[%clk 0:00:21]} 42. Rb8 {[%clk 0:00:03]}  Rd2 {[%clk 0:00:21]} 43. Rb7+ {[%clk 0:00:03]}  Kf6 {[%clk 0:00:20]} 44. Rb4 {[%clk 0:00:04]}  Rxf2+ {[%clk 0:00:20]} 45. Kg1 {[%clk 0:00:05]}  Rc2 {[%clk 0:00:19]} 46. Rf4+ {[%clk 0:00:05]}  Kg7 {[%clk 0:00:19]} 47. Re4 {[%clk 0:00:05]}  e5 {[%clk 0:00:19]} 48. Kf1 {[%clk 0:00:05]}  Kf6 {[%clk 0:00:20]} 49. Ra4 {[%clk 0:00:05]}  Kf5 {[%clk 0:00:20]} 50. Ke1 {[%clk 0:00:05]}  e4 {[%clk 0:00:20]} 51. Ra5+ {[%clk 0:00:05]}  Ne5 {[%clk 0:00:19]} 52. Kd1 {[%clk 0:00:06]}  Rg2 {[%clk 0:00:19]} 53. Ra3 {[%clk 0:00:06]}  Nd3 {[%clk 0:00:18]} 54. Ra5+ {[%clk 0:00:04]}  Kg4 {[%clk 0:00:18]} 55. Rg5+ {[%clk 0:00:04]}  Kf3 {[%clk 0:00:19]} 56. Rd5 {[%clk 0:00:00]}  Ke3 {[%clk 0:00:19]} 0-1


[Site "https://www.chess.com"]